[Event "Late-Titled-Tuesday-Blitz-October-24-2023"]
[Site "Chess.com"]
[Date "2023.10.24"]
[Round "3"]
[White "Triumphmate"]
[Black "sergiochess83"]
[Result "1/2-1/2"]
[WhiteElo "2525"]
[BlackElo "2871"]
[TimeControl "180+1"]
[EndTime "14:31:31 PDT"]
[Termination "Game drawn by stalemate"]

1. e4 {[%clk 0:03:00.9]} 1... c5 {[%clk 0:02:56]} 2. Nf3 {[%clk 0:03:01.2]} 2...
Nc6 {[%clk 0:02:56.1]} 3. d4 {[%clk 0:03:01.8]} 3... cxd4 {[%clk 0:02:56.3]} 4.
Nxd4 {[%clk 0:03:02.7]} 4... Nf6 {[%clk 0:02:56.5]} 5. Nc3 {[%clk 0:03:02.7]}
5... d6 {[%clk 0:02:54.6]} 6. f4 {[%clk 0:03:01.8]} 6... g6 {[%clk 0:02:27.4]}
7. Nf3 {[%clk 0:03:01.9]} 7... Bg7 {[%clk 0:02:26.6]} 8. Bd3 {[%clk 0:03:02.8]}
8... O-O {[%clk 0:02:25.8]} 9. O-O {[%clk 0:03:03.3]} 9... Nd7 {[%clk
0:02:24.4]} 10. Kh1 {[%clk 0:03:03.6]} 10... b6 {[%clk 0:02:22.1]} 11. Qe1
{[%clk 0:03:04.5]} 11... Bb7 {[%clk 0:02:22]} 12. Bd2 {[%clk 0:03:04.9]} 12...
Nb4 {[%clk 0:02:18.7]} 13. a3 {[%clk 0:03:05.3]} 13... Nxd3 {[%clk 0:02:18.1]}
14. cxd3 {[%clk 0:03:06.2]} 14... Nc5 {[%clk 0:02:10.4]} 15. Qe2 {[%clk
0:03:01.4]} 15... Ba6 {[%clk 0:02:08.9]} 16. Ne1 {[%clk 0:03:00]} 16... Nb3
{[%clk 0:02:05]} 17. Rd1 {[%clk 0:02:59.4]} 17... Nxd2 {[%clk 0:02:00.9]} 18.
Rxd2 {[%clk 0:03:00.3]} 18... Rc8 {[%clk 0:01:58]} 19. f5 {[%clk 0:02:59.1]}
19... e6 {[%clk 0:01:35.2]} 20. Qf3 {[%clk 0:02:54.9]} 20... Bb7 {[%clk
0:01:04.4]} 21. f6 {[%clk 0:02:53.2]} 21... Bh8 {[%clk 0:01:00.3]} 22. Rdf2
{[%clk 0:02:46.5]} 22... e5 {[%clk 0:00:53]} 23. Qh3 {[%clk 0:02:45.9]} 23...
Re8 {[%clk 0:00:51.8]} 24. Nf3 {[%clk 0:02:44.5]} 24... Bxf6 {[%clk 0:00:44.2]}
25. Ng5 {[%clk 0:02:00]} 25... Bxg5 {[%clk 0:00:37.7]} 26. Rxf7 {[%clk
0:02:00.4]} 26... h6 {[%clk 0:00:26.3]} 27. Rxb7 {[%clk 0:01:59.1]} 27... Rc7
{[%clk 0:00:24.2]} 28. Rxc7 {[%clk 0:01:54.6]} 28... Qxc7 {[%clk 0:00:25.1]} 29.
Qg4 {[%clk 0:01:52.8]} 29... Qc8 {[%clk 0:00:23.2]} 30. Qg3 {[%clk 0:01:48.9]}
30... Qe6 {[%clk 0:00:23]} 31. Nd5 {[%clk 0:01:46.7]} 31... Rf8 {[%clk
0:00:21.3]} 32. Rxf8+ {[%clk 0:01:46.2]} 32... Kxf8 {[%clk 0:00:22.2]} 33. h3
{[%clk 0:01:44]} 33... Kg7 {[%clk 0:00:20.8]} 34. Qf2 {[%clk 0:01:42.4]} 34...
Qf7 {[%clk 0:00:20.2]} 35. Kg1 {[%clk 0:01:36.1]} 35... Qxf2+ {[%clk 0:00:18.1]}
36. Kxf2 {[%clk 0:01:37]} 36... Bc1 {[%clk 0:00:18.5]} 37. Nc7 {[%clk
0:01:26.3]} 37... Bxb2 {[%clk 0:00:16.3]} 38. a4 {[%clk 0:01:26.2]} 38... Kf7
{[%clk 0:00:11.3]} 39. Nb5 {[%clk 0:01:25.6]} 39... a6 {[%clk 0:00:10.4]} 40.
Nxd6+ {[%clk 0:01:24.9]} 40... Ke6 {[%clk 0:00:11.1]} 41. Ne8 {[%clk 0:01:15.7]}
41... Kd7 {[%clk 0:00:08]} 42. Nf6+ {[%clk 0:01:14.2]} 42... Kc6 {[%clk
0:00:08.5]} 43. Ke2 {[%clk 0:01:12.5]} 43... b5 {[%clk 0:00:08.7]} 44. axb5+
{[%clk 0:01:12.4]} 44... Kxb5 {[%clk 0:00:08.8]} 45. Kd2 {[%clk 0:01:12.9]}
45... a5 {[%clk 0:00:08.4]} 46. Kc2 {[%clk 0:01:13.2]} 46... Bd4 {[%clk
0:00:08]} 47. g4 {[%clk 0:01:09.5]} 47... Kc6 {[%clk 0:00:06.4]} 48. h4 {[%clk
0:01:04.3]} 48... Kd6 {[%clk 0:00:05.9]} 49. h5 {[%clk 0:01:03.3]} 49... gxh5
{[%clk 0:00:05.9]} 50. gxh5 {[%clk 0:01:03.4]} 50... Ke6 {[%clk 0:00:06.3]} 51.
Ng4 {[%clk 0:01:03.8]} 51... a4 {[%clk 0:00:04.4]} 52. Nxh6 {[%clk 0:01:03.3]}
52... Kf6 {[%clk 0:00:04.8]} 53. Nf5 {[%clk 0:00:57.9]} 53... Bc5 {[%clk
0:00:05.2]} 54. Kc3 {[%clk 0:00:22.7]} 54... Kg5 {[%clk 0:00:05.2]} 55. h6
{[%clk 0:00:22]} 55... Kg6 {[%clk 0:00:05.6]} 56. Kc4 {[%clk 0:00:19.5]} 56...
a3 {[%clk 0:00:05.6]} 57. Kb3 {[%clk 0:00:17.4]} 57... Kh7 {[%clk 0:00:05.9]}
58. Ka2 {[%clk 0:00:12.8]} 58... Kg6 {[%clk 0:00:06.2]} 59. Kb1 {[%clk
0:00:11.6]} 59... Kh7 {[%clk 0:00:06.5]} 60. Ka1 {[%clk 0:00:12.2]} 60... Kg6
{[%clk 0:00:06.9]} 61. Ka2 {[%clk 0:00:13.1]} 61... Kh7 {[%clk 0:00:07.3]} 62.
Kb3 {[%clk 0:00:13.8]} 62... Kg6 {[%clk 0:00:07.8]} 63. Kc2 {[%clk 0:00:09.1]}
63... Kh7 {[%clk 0:00:07.9]} 64. Kc3 {[%clk 0:00:09.8]} 64... Kg6 {[%clk
0:00:08.4]} 65. Kb3 {[%clk 0:00:09.2]} 65... Kh7 {[%clk 0:00:08.8]} 66. Nh4
{[%clk 0:00:08.9]} 66... Kxh6 {[%clk 0:00:09]} 67. Nf3 {[%clk 0:00:09.8]} 67...
Bd6 {[%clk 0:00:08.8]} 68. Nd2 {[%clk 0:00:09.4]} 68... Kg5 {[%clk 0:00:08.6]}
69. Nc4 {[%clk 0:00:09.9]} 69... Bc7 {[%clk 0:00:08.5]} 70. Kxa3 {[%clk
0:00:09.2]} 70... Kf4 {[%clk 0:00:08.2]} 71. Kb4 {[%clk 0:00:07.8]} 71... Bb8
{[%clk 0:00:08.6]} 72. Kb5 {[%clk 0:00:08.3]} 72... Ba7 {[%clk 0:00:08.9]} 73.
Kc6 {[%clk 0:00:08.4]} 73... Bd4 {[%clk 0:00:09.1]} 74. Kd5 {[%clk 0:00:09.3]}
74... Ba1 {[%clk 0:00:08.6]} 75. Na5 {[%clk 0:00:06]} 75... Ke3 {[%clk
0:00:08.3]} 76. Nc6 {[%clk 0:00:06.9]} 76... Kxd3 {[%clk 0:00:08.5]} 77. Nxe5+
{[%clk 0:00:07.4]} 77... Ke3 {[%clk 0:00:09.2]} 78. Nc4+ {[%clk 0:00:07.5]}
78... Kf4 {[%clk 0:00:09.4]} 79. Nb6 {[%clk 0:00:06.1]} 79... Kg5 {[%clk
0:00:08.9]} 80. Na4 {[%clk 0:00:07]} 80... Kf6 {[%clk 0:00:08.7]} 81. Nc5 {[%clk
0:00:07.9]} 81... Ke7 {[%clk 0:00:08.7]} 82. Nb3 {[%clk 0:00:08.8]} 82... Bb2
{[%clk 0:00:08.8]} 83. Nd4 {[%clk 0:00:09.7]} 83... Bxd4 {[%clk 0:00:08.2]} 84.
Kxd4 {[%clk 0:00:09.9]} 84... Kd6 {[%clk 0:00:08.5]} 85. e5+ {[%clk 0:00:10.7]}
85... Ke6 {[%clk 0:00:08.9]} 86. Ke4 {[%clk 0:00:11.6]} 86... Ke7 {[%clk
0:00:09.4]} 87. Kd4 {[%clk 0:00:12.5]} 87... Ke6 {[%clk 0:00:09.7]} 88. Ke4
{[%clk 0:00:12.7]} 88... Ke7 {[%clk 0:00:10.2]} 89. Kd5 {[%clk 0:00:13.6]} 89...
Kd7 {[%clk 0:00:10.6]} 90. e6+ {[%clk 0:00:14.5]} 90... Ke7 {[%clk 0:00:10.9]}
91. Ke5 {[%clk 0:00:15.4]} 91... Ke8 {[%clk 0:00:11.3]} 92. Kd6 {[%clk
0:00:16.1]} 92... Kd8 {[%clk 0:00:11.5]} 93. e7+ {[%clk 0:00:17]} 93... Ke8
{[%clk 0:00:11.9]} 94. Ke6 {[%clk 0:00:17.9]} 1/2-1/2

[Event "Late-Titled-Tuesday-Blitz-October-24-2023"]
[Site "Chess.com"]
[Date "2023.10.24"]
[Round "3"]
[White "Kombinator01"]
[Black "dedpihto_v_kozhanom_palto"]
[Result "0-1"]
[WhiteElo "2438"]
[BlackElo "2637"]
[TimeControl "180+1"]
[EndTime "14:31:42 PDT"]
[Termination "dedpihto_v_kozhanom_palto won by resignation"]

1. e4 {[%clk 0:03:00.9]} 1... g6 {[%clk 0:02:56.1]} 2. d4 {[%clk 0:03:00.2]}
2... Bg7 {[%clk 0:02:56.5]} 3. Nc3 {[%clk 0:03:00.4]} 3... d6 {[%clk 0:02:57.2]}
4. Bf4 {[%clk 0:03:00.6]} 4... Nc6 {[%clk 0:02:57.6]} 5. Nge2 {[%clk 0:02:56.7]}
5... Nf6 {[%clk 0:02:50.7]} 6. Qd2 {[%clk 0:02:55]} 6... O-O {[%clk 0:02:44.5]}
7. O-O-O {[%clk 0:02:53.8]} 7... Nd7 {[%clk 0:02:44]} 8. Bh6 {[%clk 0:02:52.2]}
8... e5 {[%clk 0:02:44.2]} 9. Bxg7 {[%clk 0:02:46.3]} 9... Kxg7 {[%clk
0:02:45.1]} 10. h4 {[%clk 0:02:46.8]} 10... h5 {[%clk 0:02:36.2]} 11. g4 {[%clk
0:02:19.6]} 11... hxg4 {[%clk 0:02:15.9]} 12. h5 {[%clk 0:02:20.5]} 12... Rh8
{[%clk 0:02:16.1]} 13. d5 {[%clk 0:02:17.8]} 13... Nd4 {[%clk 0:01:58.2]} 14.
Nxd4 {[%clk 0:02:17.4]} 14... exd4 {[%clk 0:01:59.1]} 15. Qxd4+ {[%clk
0:02:17.1]} 15... Qf6 {[%clk 0:01:59.7]} 16. h6+ {[%clk 0:02:02.1]} 16... Kh7
{[%clk 0:01:45.4]} 17. Nb5 {[%clk 0:01:53.4]} 17... Qxd4 {[%clk 0:01:27.7]} 18.
Rxd4 {[%clk 0:01:54.3]} 18... a6 {[%clk 0:01:27.7]} 19. Nc3 {[%clk 0:01:46.3]}
19... Ne5 {[%clk 0:01:24]} 20. Be2 {[%clk 0:01:38.7]} 20... Bd7 {[%clk
0:01:21.1]} 21. Nd1 {[%clk 0:01:37]} 21... g5 {[%clk 0:01:15.5]} 22. Ne3 {[%clk
0:01:36.2]} 22... Kg6 {[%clk 0:01:15.9]} 23. Rg1 {[%clk 0:01:14.3]} 23... Rxh6
{[%clk 0:01:15.3]} 24. Rb4 {[%clk 0:01:11.5]} 24... b6 {[%clk 0:01:07]} 25. Bxg4
{[%clk 0:01:10.1]} 25... a5 {[%clk 0:00:52.3]} 26. Rb3 {[%clk 0:00:55]} 26...
Rh4 {[%clk 0:00:43.8]} 27. Bxd7 {[%clk 0:00:53.5]} 27... Nxd7 {[%clk 0:00:44.7]}
28. Rc3 {[%clk 0:00:49.9]} 28... Nc5 {[%clk 0:00:44.9]} 29. f3 {[%clk
0:00:49.7]} 29... Rah8 {[%clk 0:00:42.7]} 30. Nf5 {[%clk 0:00:45.9]} 30... Rh1
{[%clk 0:00:40.8]} 31. Rxh1 {[%clk 0:00:43.7]} 31... Rxh1+ {[%clk 0:00:41.7]}
32. Kd2 {[%clk 0:00:44.3]} 32... Kf6 {[%clk 0:00:33.1]} 33. a3 {[%clk
0:00:43.6]} 33... a4 {[%clk 0:00:25.7]} 34. b4 {[%clk 0:00:42.7]} 34... axb3
{[%clk 0:00:26]} 35. cxb3 {[%clk 0:00:43.6]} 35... Ke5 {[%clk 0:00:21.1]} 36. b4
{[%clk 0:00:40.8]} 36... Na6 {[%clk 0:00:21.6]} 37. Ke3 {[%clk 0:00:33.5]} 37...
Re1+ {[%clk 0:00:21.6]} 38. Kf2 {[%clk 0:00:32.9]} 38... Ra1 {[%clk 0:00:22.3]}
39. Kg3 {[%clk 0:00:26.8]} 39... Ra2 {[%clk 0:00:18.6]} 40. Kg4 {[%clk 0:00:22]}
40... Rg2+ {[%clk 0:00:16.9]} 41. Kh3 {[%clk 0:00:22]} 41... Rg1 {[%clk
0:00:16.5]} 42. Kh2 {[%clk 0:00:22]} 42... Rb1 {[%clk 0:00:12.6]} 43. Kg3 {[%clk
0:00:21.7]} 43... Rb2 {[%clk 0:00:10.5]} 44. Rd3 {[%clk 0:00:21.3]} 44... Nb8
{[%clk 0:00:05.7]} 45. Ne3 {[%clk 0:00:20.6]} 45... Kf6 {[%clk 0:00:03]} 46.
Ng4+ {[%clk 0:00:20.1]} 46... Kg6 {[%clk 0:00:02.3]} 47. Rc3 {[%clk 0:00:20.8]}
47... Na6 {[%clk 0:00:01.6]} 48. Rc1 {[%clk 0:00:18.4]} 48... Ra2 {[%clk
0:00:01.6]} 49. Rc3 {[%clk 0:00:17.3]} 49... f6 {[%clk 0:00:02]} 50. Ne3 {[%clk
0:00:17.6]} 50... Kf7 {[%clk 0:00:02.9]} 51. Nf5 {[%clk 0:00:18.1]} 51... Ke8
{[%clk 0:00:02.9]} 52. Nd4 {[%clk 0:00:18.1]} 52... Kd7 {[%clk 0:00:03.1]} 53.
Ne6 {[%clk 0:00:18.7]} 53... Ra1 {[%clk 0:00:02.6]} 54. Kg4 {[%clk 0:00:19.1]}
54... Rf1 {[%clk 0:00:02.7]} 55. Kf5 {[%clk 0:00:19.7]} 55... Rf2 {[%clk
0:00:02.6]} 56. Kxf6 {[%clk 0:00:19.7]} 56... g4 {[%clk 0:00:03.3]} 57. Ng5
{[%clk 0:00:16.9]} 57... g3 {[%clk 0:00:03.3]} 58. Rc1 {[%clk 0:00:16]} 58... g2
{[%clk 0:00:03.8]} 59. Rg1 {[%clk 0:00:16.7]} 59... c5 {[%clk 0:00:04.5]} 60.
dxc6+ {[%clk 0:00:16.2]} 60... Kxc6 {[%clk 0:00:05.4]} 61. Kf5 {[%clk
0:00:14.6]} 61... Nc7 {[%clk 0:00:05.1]} 62. Kf4 {[%clk 0:00:14.9]} 62... d5
{[%clk 0:00:05.4]} 63. exd5+ {[%clk 0:00:14.9]} 63... Nxd5+ {[%clk 0:00:05.2]}
64. Kg3 {[%clk 0:00:14.8]} 64... Ra2 {[%clk 0:00:05.9]} 65. Rxg2 {[%clk
0:00:15]} 65... Rxa3 {[%clk 0:00:06.5]} 66. Ne4 {[%clk 0:00:13.6]} 66... Nxb4
{[%clk 0:00:06.3]} 67. Rb2 {[%clk 0:00:13.4]} 67... Nd3 {[%clk 0:00:06]} 68.
Rc2+ {[%clk 0:00:12.4]} 68... Kd5 {[%clk 0:00:05.8]} 69. Nc3+ {[%clk 0:00:11.5]}
69... Ke6 {[%clk 0:00:03.7]} 70. Ne4 {[%clk 0:00:09.9]} 70... Ne5 {[%clk
0:00:03.6]} 71. Rf2 {[%clk 0:00:08.7]} 71... b5 {[%clk 0:00:03.5]} 72. Kf4
{[%clk 0:00:07.8]} 72... Nc4 {[%clk 0:00:04.2]} 73. Kg5 {[%clk 0:00:06.3]} 73...
Ne5 {[%clk 0:00:02.8]} 74. f4 {[%clk 0:00:05.7]} 74... Nf3+ {[%clk 0:00:03.5]}
75. Kg4 {[%clk 0:00:04.4]} 75... Nd4 {[%clk 0:00:04.4]} 76. f5+ {[%clk
0:00:04.5]} 76... Ke5 {[%clk 0:00:05.1]} 77. f6 {[%clk 0:00:04.7]} 77... Kxe4
{[%clk 0:00:04.9]} 78. f7 {[%clk 0:00:05.2]} 78... Ne6 {[%clk 0:00:05.5]} 79.
f8=Q {[%clk 0:00:05.5]} 79... Nxf8 {[%clk 0:00:05.4]} 80. Rxf8 {[%clk
0:00:06.4]} 80... Rc3 {[%clk 0:00:05.1]} 81. Rb8 {[%clk 0:00:07.3]} 81... Rc5
{[%clk 0:00:05.3]} 82. Kg3 {[%clk 0:00:07.2]} 82... Kd3 {[%clk 0:00:05.9]} 83.
Kf2 {[%clk 0:00:08.1]} 83... Kc2 {[%clk 0:00:05.9]} 84. Ke1 {[%clk 0:00:09]}
84... Re5+ {[%clk 0:00:05.8]} 85. Kf2 {[%clk 0:00:09.1]} 85... Kc3 {[%clk
0:00:06.4]} 86. Kf3 {[%clk 0:00:09.5]} 86... b4 {[%clk 0:00:06.7]} 87. Kf4
{[%clk 0:00:10.1]} 87... Re7 {[%clk 0:00:06.6]} 88. Rc8+ {[%clk 0:00:10.6]}
88... Kb2 {[%clk 0:00:06.6]} 0-1

[Event "Late-Titled-Tuesday-Blitz-October-24-2023"]
[Site "Chess.com"]
[Date "2023.10.24"]
[Round "3"]
[White "Mikhail_Golubev"]
[Black "Veleamater"]
[Result "1-0"]
[WhiteElo "2557"]
[BlackElo "2328"]
[TimeControl "180+1"]
[EndTime "14:31:50 PDT"]
[Termination "Mikhail_Golubev won by resignation"]

1. e4 {[%clk 0:03:00.9]} 1... d6 {[%clk 0:03:00.9]} 2. d4 {[%clk 0:02:59.8]}
2... g6 {[%clk 0:03:00.3]} 3. c4 {[%clk 0:02:59]} 3... Bg7 {[%clk 0:03:00.7]} 4.
Nc3 {[%clk 0:02:59.5]} 4... Nf6 {[%clk 0:03:01]} 5. Be2 {[%clk 0:02:59.2]} 5...
O-O {[%clk 0:03:01.2]} 6. Be3 {[%clk 0:02:59.1]} 6... Nc6 {[%clk 0:03:01.6]} 7.
d5 {[%clk 0:02:55.3]} 7... Ne5 {[%clk 0:03:01.4]} 8. f4 {[%clk 0:02:54.2]} 8...
Ned7 {[%clk 0:03:00.5]} 9. Nf3 {[%clk 0:02:50.5]} 9... e6 {[%clk 0:03:00.9]} 10.
dxe6 {[%clk 0:02:49.4]} 10... fxe6 {[%clk 0:03:01]} 11. O-O {[%clk 0:02:44.7]}
11... Ng4 {[%clk 0:03:00.9]} 12. Bc1 {[%clk 0:02:31.7]} 12... Nb6 {[%clk
0:03:00.1]} 13. Ng5 {[%clk 0:02:05.4]} 13... Nh6 {[%clk 0:02:50.9]} 14. Be3
{[%clk 0:02:01.5]} 14... Nf7 {[%clk 0:02:49.7]} 15. Nxf7 {[%clk 0:01:25.8]}
15... Rxf7 {[%clk 0:02:47]} 16. Qc2 {[%clk 0:01:23.7]} 16... Bd7 {[%clk
0:02:27.3]} 17. Rad1 {[%clk 0:01:21.9]} 17... Qe7 {[%clk 0:02:26]} 18. a4 {[%clk
0:01:07.6]} 18... Bc6 {[%clk 0:02:07.6]} 19. a5 {[%clk 0:00:53.4]} 19... Nc8
{[%clk 0:02:04.6]} 20. Bd3 {[%clk 0:00:31.9]} 20... e5 {[%clk 0:02:02.3]} 21. f5
{[%clk 0:00:27.9]} 21... gxf5 {[%clk 0:02:01.7]} 22. exf5 {[%clk 0:00:27.5]}
22... Bf6 {[%clk 0:02:00.1]} 23. Be4 {[%clk 0:00:24.7]} 23... Kh8 {[%clk
0:01:58.9]} 24. Nd5 {[%clk 0:00:22.9]} 24... Bxd5 {[%clk 0:01:58.4]} 25. Bxd5
{[%clk 0:00:22.4]} 25... Rg7 {[%clk 0:01:58]} 26. Bxb7 {[%clk 0:00:20.2]} 26...
Rb8 {[%clk 0:01:58.3]} 27. Bxc8 {[%clk 0:00:17.1]} 27... Rxc8 {[%clk 0:01:58.1]}
28. Bxa7 {[%clk 0:00:17.7]} 28... Ra8 {[%clk 0:01:57.9]} 29. Qf2 {[%clk
0:00:12]} 29... Rag8 {[%clk 0:01:54]} 30. g3 {[%clk 0:00:10.9]} 30... c5 {[%clk
0:01:51.4]} 31. Bb6 {[%clk 0:00:10.4]} 31... e4 {[%clk 0:01:50.8]} 32. Kg2
{[%clk 0:00:08]} 32... e3 {[%clk 0:01:45.5]} 33. Qe2 {[%clk 0:00:07.4]} 33...
Qe4+ {[%clk 0:01:44.9]} 34. Rf3 {[%clk 0:00:07.4]} 34... Bd4 {[%clk 0:01:44.2]}
35. Rd3 {[%clk 0:00:06.7]} 35... Re8 {[%clk 0:01:42.2]} 36. b4 {[%clk
0:00:06.6]} 36... Rf7 {[%clk 0:01:39.6]} 37. bxc5 {[%clk 0:00:06.5]} 37... dxc5
{[%clk 0:01:39.8]} 38. f6 {[%clk 0:00:06.8]} 38... Rxf6 {[%clk 0:01:36.5]} 39.
Bxc5 {[%clk 0:00:04.8]} 39... Rxf3 {[%clk 0:01:35.2]} 40. Bxd4+ {[%clk
0:00:04.3]} 40... Kg8 {[%clk 0:01:15.9]} 41. Qxf3 {[%clk 0:00:04.1]} 41... e2
{[%clk 0:01:16.5]} 42. Qxe4 {[%clk 0:00:03.4]} 42... Rxe4 {[%clk 0:01:16.5]} 43.
Bf2 {[%clk 0:00:04.3]} 43... e1=Q {[%clk 0:01:17.2]} 44. Bxe1 {[%clk 0:00:04.8]}
44... Rxe1 {[%clk 0:01:18.1]} 45. Rd5 {[%clk 0:00:04.5]} 45... Ra1 {[%clk
0:01:17.3]} 46. Kh3 {[%clk 0:00:03.2]} 46... Kf7 {[%clk 0:01:17.7]} 47. Rf5+
{[%clk 0:00:03.3]} 47... Kg6 {[%clk 0:01:18]} 48. Rd5 {[%clk 0:00:03.2]} 48...
Ra4 {[%clk 0:01:17.7]} 49. Rd6+ {[%clk 0:00:03.5]} 49... Kg5 {[%clk 0:01:17.5]}
50. Rd5+ {[%clk 0:00:03.7]} 50... Kg6 {[%clk 0:01:17.7]} 51. Rc5 {[%clk
0:00:04.1]} 51... Kf6 {[%clk 0:01:15.1]} 52. Rc6+ {[%clk 0:00:04.3]} 52... Kg5
{[%clk 0:01:14.7]} 53. Rc5+ {[%clk 0:00:04.8]} 53... Kg6 {[%clk 0:01:14.7]} 54.
Kh4 {[%clk 0:00:04.4]} 54... Kf6 {[%clk 0:01:12.5]} 55. h3 {[%clk 0:00:04.7]}
55... Ra3 {[%clk 0:01:12]} 56. g4 {[%clk 0:00:04.5]} 56... Kg6 {[%clk
0:01:09.1]} 57. Rc6+ {[%clk 0:00:04.3]} 57... Kg7 {[%clk 0:01:08.6]} 58. a6
{[%clk 0:00:05.2]} 58... h6 {[%clk 0:01:05.3]} 59. c5 {[%clk 0:00:05.2]} 59...
Kh7 {[%clk 0:01:03.1]} 60. Rc7+ {[%clk 0:00:05.4]} 60... Kg6 {[%clk 0:01:03.4]}
61. a7 {[%clk 0:00:05.9]} 61... Kf6 {[%clk 0:01:00.3]} 62. Rb7 {[%clk 0:00:06]}
62... Ke6 {[%clk 0:00:58.8]} 63. Rh7 {[%clk 0:00:05.6]} 63... Kd5 {[%clk
0:00:56.3]} 64. Rxh6 {[%clk 0:00:06.5]} 64... Rxa7 {[%clk 0:00:56.5]} 65. Rh5+
{[%clk 0:00:05.8]} 65... Ke6 {[%clk 0:00:56.1]} 66. Rf5 {[%clk 0:00:06.7]} 66...
Ra3 {[%clk 0:00:55]} 67. Rg5 {[%clk 0:00:05.7]} 67... Rc3 {[%clk 0:00:54.9]} 68.
Rh5 {[%clk 0:00:06.2]} 68... Kf6 {[%clk 0:00:55.1]} 69. c6 {[%clk 0:00:06.3]}
69... Kg6 {[%clk 0:00:54.5]} 70. Rg5+ {[%clk 0:00:06.5]} 70... Kh6 {[%clk
0:00:54]} 71. Rh5+ {[%clk 0:00:05.9]} 71... Kg6 {[%clk 0:00:54]} 72. Rg5+ {[%clk
0:00:06.8]} 72... Kh6 {[%clk 0:00:54.1]} 73. Re5 {[%clk 0:00:06.9]} 73... Rxc6
{[%clk 0:00:53.9]} 74. Re3 {[%clk 0:00:07.4]} 74... Kg6 {[%clk 0:00:52.5]} 75.
Kg3 {[%clk 0:00:07.8]} 75... Rc1 {[%clk 0:00:52.7]} 76. h4 {[%clk 0:00:08.3]}
76... Rg1+ {[%clk 0:00:52.5]} 77. Kf3 {[%clk 0:00:08.1]} 77... Rf1+ {[%clk
0:00:52.9]} 78. Kg2 {[%clk 0:00:08.2]} 78... Rf4 {[%clk 0:00:52.5]} 79. Kg3
{[%clk 0:00:08.3]} 79... Rf1 {[%clk 0:00:53.1]} 80. Re6+ {[%clk 0:00:07.9]}
80... Kf7 {[%clk 0:00:53]} 81. Ra6 {[%clk 0:00:08.3]} 81... Rg1+ {[%clk
0:00:52.9]} 82. Kf3 {[%clk 0:00:08.5]} 82... Rh1 {[%clk 0:00:53.3]} 83. h5
{[%clk 0:00:08]} 83... Rb1 {[%clk 0:00:52.1]} 84. Kg3 {[%clk 0:00:07.9]} 84...
Rh1 {[%clk 0:00:50.9]} 85. Kf4 {[%clk 0:00:07.7]} 85... Rb1 {[%clk 0:00:51.5]}
86. Kg5 {[%clk 0:00:07.3]} 86... Rb5+ {[%clk 0:00:52.1]} 87. Kh4 {[%clk
0:00:07.3]} 87... Rb4 {[%clk 0:00:52.1]} 88. h6 {[%clk 0:00:06.8]} 88... Kg8
{[%clk 0:00:52.2]} 89. Kh5 {[%clk 0:00:06.6]} 89... Rb1 {[%clk 0:00:52]} 90. g5
{[%clk 0:00:06.5]} 90... Rb8 {[%clk 0:00:51.7]} 91. g6 {[%clk 0:00:04.4]} 91...
Rb5+ {[%clk 0:00:50.5]} 92. Kg4 {[%clk 0:00:04.3]} 92... Rb4+ {[%clk 0:00:50.2]}
93. Kf5 {[%clk 0:00:04.9]} 93... Rb8 {[%clk 0:00:50.1]} 94. Kf6 {[%clk
0:00:03.6]} 94... Rf8+ {[%clk 0:00:49]} 95. Kg5 {[%clk 0:00:03]} 95... Rc8
{[%clk 0:00:49.2]} 96. Rf6 {[%clk 0:00:01.8]} 96... Rc5+ {[%clk 0:00:49.1]} 97.
Rf5 {[%clk 0:00:02.4]} 97... Rc8 {[%clk 0:00:49.7]} 98. Rf6 {[%clk 0:00:03]}
98... Rc5+ {[%clk 0:00:49.8]} 99. Rf5 {[%clk 0:00:03.5]} 99... Rc8 {[%clk
0:00:50]} 100. Kh5 {[%clk 0:00:04.1]} 100... Rd8 {[%clk 0:00:49.5]} 101. h7+
{[%clk 0:00:04.5]} 101... Kg7 {[%clk 0:00:44.6]} 102. Rf7+ {[%clk 0:00:04.6]}
102... Kh8 {[%clk 0:00:45]} 103. Kh6 {[%clk 0:00:05]} 103... Rg8 {[%clk
0:00:37.6]} 104. g7+ {[%clk 0:00:05.2]} 104... Rxg7 {[%clk 0:00:37.4]} 105. Rf8+
{[%clk 0:00:05.9]} 1-0

[Event "Late-Titled-Tuesday-Blitz-October-24-2023"]
[Site "Chess.com"]
[Date "2023.10.24"]
[Round "4"]
[White "tylityli"]
[Black "miraitrunks"]
[Result "1/2-1/2"]
[WhiteElo "2317"]
[BlackElo "2116"]
[TimeControl "180+1"]
[EndTime "14:35:10 PDT"]
[Termination "Game drawn by agreement"]

1. d4 {[%clk 0:02:57.7]} 1... Nf6 {[%clk 0:02:59.8]} 2. c4 {[%clk 0:02:45.2]}
2... c5 {[%clk 0:02:59]} 3. d5 {[%clk 0:02:45.1]} 3... b5 {[%clk 0:02:58.7]} 4.
Qc2 {[%clk 0:02:45.2]} 4... bxc4 {[%clk 0:02:58.5]} 5. e4 {[%clk 0:02:43.4]}
5... d6 {[%clk 0:02:57.4]} 6. Bxc4 {[%clk 0:02:43.3]} 6... g6 {[%clk 0:02:58.1]}
7. b3 {[%clk 0:02:43.4]} 7... Bg7 {[%clk 0:02:58.7]} 8. Bb2 {[%clk 0:02:44.3]}
8... O-O {[%clk 0:02:59]} 9. Nd2 {[%clk 0:02:44.8]} 9... Ba6 {[%clk 0:02:56.4]}
10. Ngf3 {[%clk 0:02:44]} 10... Bxc4 {[%clk 0:02:56.8]} 11. bxc4 {[%clk
0:02:44]} 11... Nbd7 {[%clk 0:02:56.9]} 12. O-O {[%clk 0:02:43]} 12... Rb8
{[%clk 0:02:57.3]} 13. Bc3 {[%clk 0:02:43]} 13... Ng4 {[%clk 0:02:33.6]} 14.
Bxg7 {[%clk 0:02:40.2]} 14... Kxg7 {[%clk 0:02:34.5]} 15. Qc3+ {[%clk 0:02:40]}
15... Kg8 {[%clk 0:02:34.5]} 16. Rab1 {[%clk 0:02:38.2]} 16... Qc7 {[%clk
0:02:29.7]} 17. a4 {[%clk 0:02:36.6]} 17... Rxb1 {[%clk 0:02:29.5]} 18. Rxb1
{[%clk 0:02:35.7]} 18... Rb8 {[%clk 0:02:30]} 19. Rb3 {[%clk 0:02:29.6]} 19...
Rxb3 {[%clk 0:02:28.5]} 20. Qxb3 {[%clk 0:02:24.6]} 20... Qb6 {[%clk 0:02:25.7]}
21. h3 {[%clk 0:02:03.7]} 21... Nge5 {[%clk 0:02:20.4]} 1/2-1/2

[Event "Late-Titled-Tuesday-Blitz-October-24-2023"]
[Site "Chess.com"]
[Date "2023.10.24"]
[Round "4"]
[White "ExchangeAB"]
[Black "PushingpawnsNYC"]
[Result "1-0"]
[WhiteElo "2517"]
[BlackElo "2343"]
[TimeControl "180+1"]
[EndTime "14:35:27 PDT"]
[Termination "ExchangeAB won by checkmate"]

1. d4 {[%clk 0:03:00.9]} 1... Nf6 {[%clk 0:02:46.1]} 2. Nc3 {[%clk 0:03:00.7]}
2... d5 {[%clk 0:02:44.4]} 3. Bf4 {[%clk 0:03:00.2]} 3... g6 {[%clk 0:02:44.8]}
4. e3 {[%clk 0:03:00]} 4... Bg7 {[%clk 0:02:44.3]} 5. h4 {[%clk 0:03:00.7]} 5...
h5 {[%clk 0:02:43.8]} 6. Nf3 {[%clk 0:03:00.7]} 6... c6 {[%clk 0:02:44.1]} 7.
Ne5 {[%clk 0:03:01.1]} 7... b5 {[%clk 0:02:41.6]} 8. a3 {[%clk 0:02:54.1]} 8...
Bf5 {[%clk 0:02:39.8]} 9. Bd3 {[%clk 0:02:53.1]} 9... Qc8 {[%clk 0:02:32.3]} 10.
f3 {[%clk 0:02:47]} 10... e6 {[%clk 0:02:20.6]} 11. g4 {[%clk 0:02:29.3]} 11...
Bxd3 {[%clk 0:02:14]} 12. Qxd3 {[%clk 0:02:22.5]} 12... Nbd7 {[%clk 0:02:13.9]}
13. g5 {[%clk 0:02:09.7]} 13... Nh7 {[%clk 0:01:48.1]} 14. Nxg6 {[%clk
0:02:07.5]} 14... fxg6 {[%clk 0:01:47.2]} 15. Qxg6+ {[%clk 0:02:07.3]} 15... Kf8
{[%clk 0:01:47.5]} 16. Bd6+ {[%clk 0:02:06.4]} 16... Kg8 {[%clk 0:01:40.5]} 17.
Qxe6# {[%clk 0:02:06.4]} 1-0